fUST/lending_fUST_20250627
["ID","MTS","AMOUNT","RATE_DAILY","PERIOD"]
[368049825,1751007046966,-460.0,0.00020821,2]
[368049826,1751007046975,-460.0,0.00020821,2]
[368049827,1751007046985,-857.15,0.00020821,2]
[368049828,1751007046994,-350.37266074,0.00020821,2]
[368049829,1751007047003,-460.0,0.00020821,2]
[368049830,1751007047012,-460.0,0.00020821,2]
[368049831,1751007047021,-460.0,0.00020821,2]
[368049832,1751007047031,-546.15,0.00020821,2]
[368049833,1751007047040,-460.0,0.00020821,2]
[368049834,1751007047049,-777.34,0.00020821,2]
[368049835,1751007047058,-460.0,0.00020821,2]
[368049836,1751007047068,-536.62,0.00020821,2]
[368049837,1751007047077,-460.0,0.00020821,2]
[368049838,1751007047086,-514.59,0.00020821,2]
[368049839,1751007047095,-460.0,0.00020821,2]
[368049840,1751007047108,-460.0,0.00020821,2]
[368049841,1751007047118,-460.0,0.00020821,2]
[368049842,1751007047127,-470.77,0.00020821,2]
[368049843,1751007047137,-2319.96,0.00020821,2]
[368049844,1751007047146,-2216.81,0.00020821,2]
[368049845,1751007047156,-509.96,0.00020821,2]
[368049846,1751007047165,-818.99,0.00020821,2]
[368049847,1751007047174,-460.0,0.00020821,2]
[368049848,1751007047183,-460.0,0.00020821,2]
[368049849,1751007047192,-566.19,0.00020821,2]
[368049850,1751007047202,-460.0,0.00020821,2]
[368049851,1751007047212,-1074.2,0.00020821,2]
[368049852,1751007047222,-630.23,0.00020821,2]
[368049853,1751007047232,-749.42,0.00020821,2]
[368049854,1751007047242,-3942.62,0.00020821,2]
[368049855,1751007047251,-2701.14,0.00020821,2]
[368049856,1751007047262,-460.0,0.00020821,2]
[368049857,1751007047272,-923.66,0.00020821,2]
[368049858,1751007047281,-460.0,0.00020821,2]
[368049859,1751007047290,-779.98,0.00020821,2]
[368049860,1751007047300,-460.0,0.00020821,2]
[368049861,1751007047432,-657.61,0.00020821,2]
[368049862,1751007047442,-460.0,0.00020821,2]
[368049863,1751007047451,-460.0,0.00020821,2]
[368049864,1751007047461,-5406.16,0.00020821,2]
[368049865,1751007047471,-226.2393405,0.00020821,2]
[368049866,1751007047480,-1287.6,0.00020821,2]
[368049867,1751007047490,-473.28,0.00020821,2]
[368049868,1751007047500,-464.16,0.00020821,2]
[368049869,1751007047510,-2741.89,0.00020821,2]
[368049870,1751007047519,-807.09,0.00020821,2]
[368049871,1751007047531,-1429.98,0.00020821,2]
[368049872,1751007047541,-643.67,0.00020821,2]
[368049873,1751007047551,-795.16,0.00020821,2]
[368049874,1751007047562,-598.58,0.00020821,2]
[368049875,1751007047571,-460.0,0.00020821,2]
[368049876,1751007047581,-2622.05,0.00020821,2]
[368049877,1751007047591,-2189.0,0.00020821,2]
[368049878,1751007047601,-711.42,0.00020821,2]
[368049879,1751007047610,-460.0,0.00020821,2]
[368049880,1751007047619,-899.03,0.00020821,2]
[368049881,1751007047629,-892.43,0.00020821,2]
[368049882,1751007047638,-2557.0,0.00020821,2]
[368049883,1751007047648,-460.0,0.00020821,2]
[368049884,1751007047658,-1675.66,0.00020821,2]
[368049885,1751007047667,-460.0,0.00020821,2]
[368049886,1751007047677,-460.0,0.00020821,2]
[368049887,1751007047687,-1066.54,0.00020821,2]
[368049888,1751007047697,-2069.84,0.00020821,2]
[368049889,1751007047707,-754.06,0.00020821,2]
[368049890,1751007047716,-1258.34,0.00020821,2]
[368049891,1751007047727,-1894.49,0.00020821,2]
[368049892,1751007047740,-753.0,0.00020824,2]
[368049893,1751007047750,-453.69017575,0.0002086,2]
[368049894,1751007047760,-25000.0,0.00020898,2]
[368049895,1751007047771,-230.64363875,0.00020898,2]
[368049896,1751007047781,-500.0,0.00020898,2]
[368049897,1751007047790,-500.0,0.00020898,2]
[368049898,1751007047801,-666.0,0.00020898,2]
[368049899,1751007047811,-500.0,0.00020898,2]
[368049900,1751007047821,-575.21477399,0.00020898,2]
[368049901,1751007047830,-151.0,0.00020898,2]
[368049902,1751007047840,-207.4,0.00020898,2]
[368049903,1751007047849,-151.0,0.00020898,2]
[368049904,1751007047859,-5000.0,0.00020898,2]
[368049905,1751007047868,-151.0,0.00020898,2]
[368049906,1751007047877,-151.0,0.00020898,2]
[368049907,1751007047887,-3196.89144433,0.00020898,2]
[368049908,1751007047897,-151.0,0.00020898,2]
[368049909,1751007047906,-200.0,0.00020898,2]
[368049910,1751007047915,-151.0,0.00020898,2]
[368049911,1751007047925,-151.0,0.00020898,2]
[368049912,1751007047934,-151.0,0.00020898,2]
[368049913,1751007047944,-151.0,0.00020898,2]
[368049914,1751007047953,-300.0,0.00020898,2]
[368049915,1751007047962,-151.0,0.00020898,2]
[368049916,1751007047971,-151.0,0.00020898,2]
[368049917,1751007047980,-246.62150823,0.00020898,2]
[368049918,1751007047989,-420.0,0.00020899,2]
[368049919,1751007047999,-8453.20908742,0.000209,4]
[368049920,1751007048008,-690.642,0.00020953,2]
[368049921,1751007048017,-151.0,0.00021,4]
[368049922,1751007048026,-716.195754,0.00021008,2]
[368049923,1751007048035,-742.6949969,0.00021063,2]
[368049924,1751007048045,-8453.20908729,0.00021072,4]
[368049925,1751007048054,-603.28,0.00021095,2]
[368049926,1751007048063,-460.0,0.00021095,2]
[368049927,1751007048073,-460.0,0.00021095,2]
[368049928,1751007048082,-807.08,0.00021095,2]
[368049929,1751007048092,-460.0,0.00021095,2]
[368049930,1751007048103,-460.0,0.00021095,2]
[368049931,1751007048112,-857.15,0.00021095,2]
[368049932,1751007048121,-460.0,0.00021095,2]
[368049933,1751007048130,-460.0,0.00021095,2]
[368049934,1751007048139,-195.93417325,0.00021095,2]
[368049935,1751007048149,-546.15,0.00021095,2]
[368049936,1751007048158,-460.0,0.00021095,2]
[368049937,1751007048167,-777.34,0.00021095,2]
[368049938,1751007048177,-460.0,0.00021095,2]
[368049939,1751007048186,-536.62,0.00021095,2]
[368049940,1751007048196,-460.0,0.00021095,2]
[368049941,1751007048206,-514.59,0.00021095,2]
[368049942,1751007048215,-460.0,0.00021095,2]
[368049943,1751007048225,-460.0,0.00021095,2]
[368049944,1751007048234,-460.0,0.00021095,2]
[368049945,1751007048244,-470.77,0.00021095,2]
[368049946,1751007048253,-2319.96,0.00021095,2]
[368049947,1751007048263,-2216.81,0.00021095,2]
[368049948,1751007048272,-509.96,0.00021095,2]
[368049949,1751007048281,-818.99,0.00021095,2]
[368049950,1751007048291,-460.0,0.00021095,2]
[368049951,1751007048300,-460.0,0.00021095,2]
[368049952,1751007048309,-566.19,0.00021095,2]
[368049953,1751007048319,-460.0,0.00021095,2]
[368049954,1751007048329,-1074.2,0.00021095,2]
[368049955,1751007048339,-630.23,0.00021095,2]
[368049956,1751007048348,-749.42,0.00021095,2]
[368049957,1751007048358,-3942.62,0.00021095,2]
[368049958,1751007048367,-2701.14,0.00021095,2]
[368049959,1751007048377,-460.0,0.00021095,2]
[368049960,1751007048397,-923.66,0.00021095,2]
[368049961,1751007048407,-460.0,0.00021095,2]
[368049962,1751007048417,-779.98,0.00021095,2]
[368049963,1751007048427,-460.0,0.00021095,2]
[368049964,1751007048437,-657.61,0.00021095,2]
[368049965,1751007048447,-460.0,0.00021095,2]
[368049966,1751007048457,-460.0,0.00021095,2]
[368049967,1751007048467,-5406.16,0.00021095,2]
[368049968,1751007048477,-1287.6,0.00021095,2]
[368049969,1751007048487,-473.28,0.00021095,2]
[368049970,1751007048497,-464.16,0.00021095,2]
[368049971,1751007048507,-2741.89,0.00021095,2]
[368049972,1751007048517,-807.09,0.00021095,2]
[368049973,1751007048527,-1429.98,0.00021095,2]
[368049974,1751007048537,-643.67,0.00021095,2]
[368049975,1751007048547,-795.16,0.00021095,2]
[368049976,1751007048558,-598.58,0.00021095,2]
[368049977,1751007048567,-460.0,0.00021095,2]
[368049978,1751007048577,-2622.05,0.00021095,2]
[368049979,1751007048588,-2189.0,0.00021095,2]
[368049980,1751007048597,-711.42,0.00021095,2]
[368049981,1751007048608,-460.0,0.00021095,2]
[368049982,1751007048618,-899.03,0.00021095,2]
[368049983,1751007048628,-892.43,0.00021095,2]
[368049984,1751007048639,-2557.0,0.00021095,2]
[368049985,1751007048649,-460.0,0.00021095,2]
[368049986,1751007048659,-1675.66,0.00021095,2]
[368049987,1751007048670,-460.0,0.00021095,2]
[368049988,1751007048680,-438.56714566,0.00021095,2]
[368049989,1751007048690,-1066.54,0.00021095,2]
[368049990,1751007048700,-2069.84,0.00021095,2]
[368049991,1751007048710,-754.06,0.00021095,2]
[368049992,1751007048721,-1258.34,0.00021095,2]
[368049993,1751007048734,-1894.49,0.00021095,2]
[368049994,1751007048744,-770.17471178,0.00021118,2]
[368049995,1751007048754,-1407.788,0.00021144,2]
[368049996,1751007048764,-177.888,0.00021144,2]
[368049997,1751007048775,-798.67117612,0.00021173,2]
[368049998,1751007048785,-151.0,0.000212,4]
[368049999,1751007048795,-339.72951692,0.00021228,2]
[368050000,1751007048805,-8453.20908729,0.00021245,4]
[368050001,1751007048815,-1943.62550974,0.00021332,2]
[368050002,1751007048825,-500.0,0.00021356,2]
[368050003,1751007048835,-2000.0,0.00021367,2]
[368050004,1751007048847,-603.28,0.00021369,2]
[368050005,1751007048857,-460.0,0.00021369,2]
[368050006,1751007048867,-460.0,0.00021369,2]
[368050007,1751007048878,-807.08,0.00021369,2]
[368050008,1751007048888,-460.0,0.00021369,2]
[368050009,1751007048898,-460.0,0.00021369,2]
[368050010,1751007048907,-857.15,0.00021369,2]
[368050011,1751007048918,-460.0,0.00021369,2]
[368050012,1751007048928,-460.0,0.00021369,2]
[368050013,1751007048938,-546.15,0.00021369,2]
[368050014,1751007048947,-460.0,0.00021369,2]
[368050015,1751007048957,-777.34,0.00021369,2]
[368050016,1751007048967,-460.0,0.00021369,2]
[368050017,1751007048977,-536.62,0.00021369,2]
[368050018,1751007048987,-460.0,0.00021369,2]
[368050019,1751007048996,-514.59,0.00021369,2]
[368050020,1751007049006,-460.0,0.00021369,2]
[368050021,1751007049016,-460.0,0.00021369,2]
[368050022,1751007049026,-460.0,0.00021369,2]
[368050023,1751007049036,-470.77,0.00021369,2]
[368050024,1751007049046,-2319.96,0.00021369,2]
[368050025,1751007049056,-2216.81,0.00021369,2]
[368050026,1751007049065,-509.96,0.00021369,2]
[368050027,1751007049076,-818.99,0.00021369,2]
[368050028,1751007049086,-460.0,0.00021369,2]
[368050029,1751007049097,-460.0,0.00021369,2]
[368050030,1751007049107,-566.19,0.00021369,2]
[368050031,1751007049116,-460.0,0.00021369,2]
[368050032,1751007049126,-1074.2,0.00021369,2]
[368050033,1751007049136,-630.23,0.00021369,2]
[368050034,1751007049146,-749.42,0.00021369,2]
[368050035,1751007049156,-3942.62,0.00021369,2]
[368050036,1751007049165,-2701.14,0.00021369,2]
[368050037,1751007049176,-460.0,0.00021369,2]
[368050038,1751007049186,-923.66,0.00021369,2]
[368050039,1751007049196,-460.0,0.00021369,2]
[368050040,1751007049205,-779.98,0.00021369,2]
[368050041,1751007049215,-460.0,0.00021369,2]
[368050042,1751007049225,-657.61,0.00021369,2]
[368050043,1751007049234,-460.0,0.00021369,2]
[368050044,1751007049244,-460.0,0.00021369,2]
[368050045,1751007049254,-5406.16,0.00021369,2]
[368050046,1751007049263,-1287.6,0.00021369,2]
[368050047,1751007049273,-473.28,0.00021369,2]
[368050048,1751007049282,-464.16,0.00021369,2]
[368050049,1751007049292,-2741.89,0.00021369,2]
[368050050,1751007049301,-807.09,0.00021369,2]
[368050051,1751007049310,-1429.98,0.00021369,2]
[368050052,1751007049320,-643.67,0.00021369,2]
[368050053,1751007049329,-795.16,0.00021369,2]
[368050054,1751007049338,-598.58,0.00021369,2]
[368050055,1751007049347,-460.0,0.00021369,2]
[368050056,1751007049357,-2622.05,0.00021369,2]
[368050057,1751007049367,-2189.0,0.00021369,2]
[368050058,1751007049376,-711.42,0.00021369,2]
[368050059,1751007049386,-460.0,0.00021369,2]
[368050060,1751007049395,-899.03,0.00021369,2]
[368050061,1751007049404,-892.43,0.00021369,2]
[368050062,1751007049414,-2557.0,0.00021369,2]
[368050063,1751007049424,-460.0,0.00021369,2]
[368050064,1751007049433,-1675.66,0.00021369,2]
[368050065,1751007049443,-553.39096328,0.00021369,2]
[368050066,1751007049452,-1066.54,0.00021369,2]
[368050067,1751007049462,-2069.84,0.00021369,2]
[368050068,1751007049471,-754.06,0.00021369,2]
[368050069,1751007049480,-1258.34,0.00021369,2]
[368050070,1751007049490,-1894.49,0.00021369,2]
[368050071,1751007049500,-500.0,0.00021416,2]
[368050072,1751007049510,-500.0,0.00021416,2]
[368050073,1751007049519,-500.0,0.00021416,2]
[368050074,1751007049529,-477.2214578,0.00021416,2]
[368050075,1751007049539,-500.0,0.00021416,2]
[368050076,1751007049548,-500.0,0.00021416,2]
[368050077,1751007049558,-365.07104372,0.00021416,2]
[368050078,1751007049568,-500.0,0.00021416,2]
[368050079,1751007049577,-500.0,0.00021416,2]
[368050080,1751007049587,-500.0,0.00021416,2]
[368050081,1751007049597,-500.0,0.00021416,2]
[368050082,1751007049607,-500.0,0.00021416,2]
[368050083,1751007049616,-8453.20908729,0.00021417,5]
[368050084,1751007049626,-25000.0,0.00021446,2]
[368050085,1751007049635,-5000.0,0.00021446,2]
[368050086,1751007049645,-151.0,0.000215,3]
[368050087,1751007049654,-180.0,0.00021519,2]
[368050088,1751007049665,-1100.001432,0.0002156,4]
[368050089,1751007049675,-8453.20908729,0.0002159,5]
[368050090,1751007049685,-1000.0,0.00021616,2]
[368050091,1751007049695,-1000.0,0.00021616,2]
[368050092,1751007049705,-1000.0,0.00021616,2]
[368050093,1751007049715,-158.58637463,0.00021616,2]
[368050094,1751007049726,-603.28,0.00021643,2]
[368050095,1751007049741,-460.0,0.00021643,2]
[368050096,1751007049750,-550.4,0.00021643,2]
[368050097,1751007049760,-807.08,0.00021643,2]
[368050098,1751007049771,-460.0,0.00021643,2]
[368050099,1751007049781,-460.0,0.00021643,2]
[368050100,1751007049790,-857.15,0.00021643,2]
[368050101,1751007049799,-460.0,0.00021643,2]
[368050102,1751007049810,-460.0,0.00021643,2]
[368050103,1751007049821,-546.15,0.00021643,2]
[368050104,1751007049830,-460.0,0.00021643,2]
[368050105,1751007049840,-777.34,0.00021643,2]
[368050106,1751007049849,-460.0,0.00021643,2]
[368050107,1751007049858,-536.62,0.00021643,2]
[368050108,1751007049867,-460.0,0.00021643,2]
[368050109,1751007049877,-514.59,0.00021643,2]
[368050110,1751007049887,-460.0,0.00021643,2]
[368050111,1751007049897,-460.0,0.00021643,2]
[368050112,1751007049906,-460.0,0.00021643,2]
[368050113,1751007049916,-470.77,0.00021643,2]
[368050114,1751007049927,-2319.96,0.00021643,2]
[368050115,1751007049938,-2216.81,0.00021643,2]
[368050116,1751007049948,-509.96,0.00021643,2]
[368050117,1751007049958,-818.99,0.00021643,2]
[368050118,1751007049968,-460.0,0.00021643,2]
[368050119,1751007049978,-460.0,0.00021643,2]
[368050120,1751007049988,-566.19,0.00021643,2]
[368050121,1751007049998,-460.0,0.00021643,2]
[368050122,1751007050008,-1074.2,0.00021643,2]
[368050123,1751007050018,-630.23,0.00021643,2]
[368050124,1751007050027,-749.42,0.00021643,2]
[368050125,1751007050036,-3942.62,0.00021643,2]
[368050126,1751007050046,-2701.14,0.00021643,2]
[368050127,1751007050056,-460.0,0.00021643,2]
[368050128,1751007050066,-923.66,0.00021643,2]
[368050129,1751007050075,-460.0,0.00021643,2]
[368050130,1751007050085,-779.98,0.00021643,2]
[368050131,1751007050095,-460.0,0.00021643,2]
[368050132,1751007050104,-657.61,0.00021643,2]
[368050133,1751007050114,-460.0,0.00021643,2]
[368050134,1751007050123,-460.0,0.00021643,2]
[368050135,1751007050132,-5406.16,0.00021643,2]
[368050136,1751007050142,-1287.6,0.00021643,2]
[368050137,1751007050152,-473.28,0.00021643,2]
[368050138,1751007050161,-464.16,0.00021643,2]
[368050139,1751007050171,-2741.89,0.00021643,2]
[368050140,1751007050181,-807.09,0.00021643,2]
[368050141,1751007050191,-1429.98,0.00021643,2]
[368050142,1751007050200,-643.67,0.00021643,2]
[368050143,1751007050209,-795.16,0.00021643,2]
[368050144,1751007050219,-598.58,0.00021643,2]
[368050145,1751007050230,-460.0,0.00021643,2]
[368050146,1751007050240,-2622.05,0.00021643,2]
[368050147,1751007050251,-2189.0,0.00021643,2]
[368050148,1751007050262,-711.42,0.00021643,2]
[368050149,1751007050272,-460.0,0.00021643,2]
[368050150,1751007050281,-899.03,0.00021643,2]
[368050151,1751007050291,-892.43,0.00021643,2]
[368050152,1751007050300,-2557.0,0.00021643,2]
[368050153,1751007050310,-460.0,0.00021643,2]
[368050154,1751007050319,-1675.66,0.00021643,2]
[368050155,1751007050328,-1066.54,0.00021643,2]
[368050156,1751007050338,-754.06,0.00021643,2]
[368050157,1751007050350,-1258.34,0.00021643,2]
[368050158,1751007050360,-2069.84,0.00021643,2]
[368050159,1751007050369,-1894.49,0.00021643,2]
[368050160,1751007050379,-166.08289693,0.00021644,2]
[368050161,1751007050388,-151.0,0.000217,3]
[368050162,1751007050398,-8453.20908729,0.00021762,5]
[368050163,1751007050408,-2681.4967068,0.0002178,2]
[368050164,1751007050418,-966.0,0.00021783,2]
[368050165,1751007050574,-654.0,0.00021783,2]
[368050166,1751007050585,-2161.0,0.00021783,2]
[368050167,1751007050594,-410.338,0.00021783,2]
[368050168,1751007050603,-200.0,0.0002179,4]
[368050169,1751007050613,-166.08289693,0.00021836,2]
[368050170,1751007050623,-306.0,0.00021863,2]
[368050171,1751007050632,-153.0,0.00021863,2]
[368050172,1751007050642,-153.0,0.00021863,2]
[368050173,1751007050651,-53963.730367,0.00021898,2]
[368050174,1751007050661,-5123.45,0.000219,2]
[368050175,1751007050671,-428.24547751,0.000219,2]
[368050176,1751007050681,-200.0,0.000219,3]
[368050177,1751007050690,-10400.39089948,0.000219,2]
[368050178,1751007050700,-1780.16948974,0.00021915,2]
[368050179,1751007050709,-460.0,0.00021917,2]
[368050180,1751007050719,-547.03226586,0.00021917,2]
[368050181,1751007050731,-603.28,0.00021917,2]
[368050182,1751007050741,-460.0,0.00021917,2]
[368050183,1751007050751,-807.08,0.00021917,2]
[368050184,1751007050761,-460.0,0.00021917,2]
[368050185,1751007050770,-460.0,0.00021917,2]
[368050186,1751007050779,-857.15,0.00021917,2]
[368050187,1751007050789,-460.0,0.00021917,2]
[368050188,1751007050798,-460.0,0.00021917,2]
[368050189,1751007050807,-460.0,0.00021917,2]
[368050190,1751007050818,-460.0,0.00021917,2]
[368050191,1751007050827,-460.0,0.00021917,2]
[368050192,1751007050836,-460.0,0.00021917,2]
[368050193,1751007050845,-460.0,0.00021917,2]
[368050194,1751007050854,-460.0,0.00021917,2]
[368050195,1751007050864,-460.0,0.00021917,2]
[368050196,1751007050873,-460.0,0.00021917,2]
[368050197,1751007050883,-546.15,0.00021917,2]
[368050198,1751007050892,-460.0,0.00021917,2]
[368050199,1751007050901,-777.34,0.00021917,2]
[368050200,1751007050910,-460.0,0.00021917,2]
[368050201,1751007050920,-536.62,0.00021917,2]
[368050202,1751007050929,-460.0,0.00021917,2]
[368050203,1751007050938,-514.59,0.00021917,2]
[368050204,1751007050947,-460.0,0.00021917,2]
[368050205,1751007050956,-460.0,0.00021917,2]
[368050206,1751007050965,-460.0,0.00021917,2]
[368050207,1751007050975,-470.77,0.00021917,2]
[368050208,1751007050984,-2319.96,0.00021917,2]
[368050209,1751007050993,-2216.81,0.00021917,2]
[368050210,1751007051002,-509.96,0.00021917,2]
[368050211,1751007051012,-818.99,0.00021917,2]
[368050212,1751007051021,-460.0,0.00021917,2]
[368050213,1751007051031,-460.0,0.00021917,2]
[368050214,1751007051040,-566.19,0.00021917,2]
[368050215,1751007051049,-460.0,0.00021917,2]
[368050216,1751007051059,-1074.2,0.00021917,2]
[368050217,1751007051068,-630.23,0.00021917,2]
[368050218,1751007051078,-749.42,0.00021917,2]
[368050219,1751007051087,-3942.62,0.00021917,2]
[368050220,1751007051096,-2701.14,0.00021917,2]
[368050221,1751007051107,-460.0,0.00021917,2]
[368050222,1751007051116,-923.66,0.00021917,2]
[368050223,1751007051126,-460.0,0.00021917,2]
[368050224,1751007051135,-779.98,0.00021917,2]
[368050225,1751007051144,-460.0,0.00021917,2]
[368050226,1751007051154,-657.61,0.00021917,2]
[368050227,1751007051164,-460.0,0.00021917,2]
[368050228,1751007051173,-460.0,0.00021917,2]
[368050229,1751007051182,-5406.16,0.00021917,2]
[368050230,1751007051191,-1287.6,0.00021917,2]
[368050231,1751007051200,-473.28,0.00021917,2]
[368050232,1751007051209,-464.16,0.00021917,2]
[368050233,1751007051218,-2741.89,0.00021917,2]
[368050234,1751007051227,-807.09,0.00021917,2]
[368050235,1751007051236,-1429.98,0.00021917,2]
[368050236,1751007051245,-643.67,0.00021917,2]
[368050237,1751007051255,-795.16,0.00021917,2]
[368050238,1751007051264,-598.58,0.00021917,2]
[368050239,1751007051273,-460.0,0.00021917,2]
[368050240,1751007051282,-2622.05,0.00021917,2]
[368050241,1751007051292,-2189.0,0.00021917,2]
[368050242,1751007051301,-711.42,0.00021917,2]
[368050243,1751007051310,-460.0,0.00021917,2]
[368050244,1751007051320,-500.0,0.00021917,2]
[368050245,1751007051329,-899.03,0.00021917,2]
[368050246,1751007051339,-892.43,0.00021917,2]
[368050247,1751007051349,-2557.0,0.00021917,2]
[368050248,1751007051359,-460.0,0.00021917,2]
[368050249,1751007051368,-1675.66,0.00021917,2]
[368050250,1751007051377,-1066.54,0.00021917,2]
[368050251,1751007051387,-754.06,0.00021917,2]
[368050252,1751007051396,-1258.34,0.00021917,2]
[368050253,1751007051405,-2069.84,0.00021917,2]
[368050254,1751007051416,-1894.49,0.00021917,2]
[368050255,1751007051425,-166.0,0.00021918,2]
[368050256,1751007051435,-150.0,0.00021918,2]
[368050257,1751007051444,-8453.20908729,0.00021934,6]
[368050258,1751007051454,-500.0,0.00021973,2]
[368050259,1751007051462,-500.0,0.00021973,2]
[368050260,1751007051471,-500.0,0.00021973,2]
[368050261,1751007051480,-500.0,0.00021973,2]
[368050262,1751007051490,-500.0,0.00021973,2]
[368050263,1751007051499,-500.0,0.00021973,2]
[368050264,1751007051508,-500.0,0.00021973,2]
[368050265,1751007051518,-500.0,0.00021973,2]
[368050266,1751007051527,-500.0,0.00021973,2]
[368050267,1751007051536,-610.78167965,0.00021973,2]
[368050268,1751007051547,-500.0,0.00021973,2]
[368050269,1751007051557,-500.56052383,0.00021973,2]
[368050270,1751007051567,-500.47190355,0.00021973,2]
[368050271,1751007051576,-500.0,0.00021973,2]
[368050272,1751007051586,-500.0,0.00021973,2]
[368050273,1751007051595,-500.0,0.00021973,2]
[368050274,1751007051605,-500.0,0.00021973,2]
[368050275,1751007051616,-198.78382991,0.00021973,2]
[368050276,1751007051626,-180.55111141,0.00021973,2]
[368050277,1751007051636,-500.0,0.00021973,2]
[368050278,1751007051646,-500.0,0.00021973,2]
[368050279,1751007051656,-500.0,0.00021973,2]
[368050280,1751007051666,-500.0,0.00021973,2]
[368050281,1751007051676,-500.0,0.00021973,2]
[368050282,1751007051686,-500.0,0.00021973,2]
[368050283,1751007051695,-500.0,0.00021973,2]
[368050284,1751007051705,-500.0,0.00021973,2]
[368050285,1751007051715,-500.0,0.00021973,2]
[368050286,1751007051725,-500.0,0.00021973,2]
[368050287,1751007051738,-500.0,0.00021973,2]
[368050288,1751007051747,-500.0,0.00021973,2]
[368050289,1751007051757,-500.0,0.00021973,2]
[368050290,1751007051766,-500.0,0.00021973,2]
[368050291,1751007051777,-500.0,0.00021973,2]
[368050292,1751007051787,-500.0,0.00021973,2]
[368050293,1751007051797,-500.0,0.00021973,2]
[368050294,1751007051809,-500.0,0.00021973,2]
[368050295,1751007051819,-544.82622425,0.00021973,2]
[368050296,1751007051829,-500.0,0.00021973,2]
[368050297,1751007051838,-500.0,0.00021973,2]
[368050298,1751007051848,-600.0,0.00021973,2]
[368050299,1751007051857,-500.0,0.00021973,2]
[368050300,1751007051866,-500.0,0.00021973,2]
[368050301,1751007051876,-500.0,0.00021973,2]
[368050302,1751007051885,-500.0,0.00021973,2]
[368050303,1751007051895,-500.0,0.00021973,2]
[368050304,1751007051904,-500.0,0.00021973,2]
[368050305,1751007051914,-500.0,0.00021973,2]
[368050306,1751007051924,-500.0,0.00021973,2]
[368050307,1751007051934,-500.0,0.00021973,2]
[368050308,1751007051943,-500.0,0.00021973,2]
[368050309,1751007051953,-500.0,0.00021973,2]
[368050310,1751007051962,-500.0,0.00021973,2]
[368050311,1751007051971,-500.0,0.00021973,2]
[368050312,1751007051980,-500.0,0.00021973,2]
[368050313,1751007051989,-500.0,0.00021973,2]
[368050314,1751007051998,-586.43269723,0.00021973,2]
[368050315,1751007052007,-500.0,0.00021973,2]
[368050316,1751007052016,-500.0,0.00021973,2]
[368050317,1751007052026,-500.0,0.00021973,2]
[368050318,1751007052035,-587.58906329,0.00021973,2]
[368050319,1751007052044,-156.92083,0.0002198,5]
[368050320,1751007052054,-165.163626,0.0002198,5]
[368050321,1751007052063,-5000.0,0.00021994,2]
[368050322,1751007052072,-200.0,0.00021999,2]
[368050323,1751007052081,-200.0,0.00021999,2]
[368050324,1751007052090,-160.20507518,0.00021999,2]